{"text_format":"1","workbook":"xlsx","n_sheets":5,"sheets":["Contents","Introduction Round","ISLOGICAL","IF-ISLOGICAL","IF-Not-ISLOGICAL"],"not_rendered":{"charts":0,"images":2,"macros":1,"external_links":0,"defined_names":0,"comments":0,"pivot_tables":0},"unopened":[],"bounds":{"document_bytes":16777216,"sheet_cells":100000,"rows_first":2000,"rows_last":500,"rows_between":2000,"halvings":0,"cell_chars":16384,"cell_head_chars":4096},"cells_cut":0,"cells_raw":0,"read":"whole","date_system":"1900"}

{"sheet":"Contents","index":0,"n_rows":47,"n_cols":6,"rows_kept":47,"cut":false,"hidden":false,"merged":[]}
["ISLOGICAL Function"]
[null,"automateexcel.com/functions/islogical-formula-excel"]
[]
[null,"Table of Contents",null,null,null,"Other Resources"]
[null,"Introduction Round",null,null,null,"Excel Formulas w/Examples"]
[null,"ISLOGICAL",null,null,null,"Excel Boot Camp - Learn Excel inside Excel"]
[null,"IF-ISLOGICAL",null,null,null,"Excel Functions & Formulas Tutorial"]
[null,"IF-Not-ISLOGICAL"]
[]
[]
[]
[]
[null,"Excel Boot Camp"]
[null,"  Learn Excel Inside Excel"]
[]
[]
[]
[]
[]
[]
[]
[]
[]
[]
[]
[]
[]
[]
[]
[]
[]
[]
[]
[]
[]
[]
[null,"           Learn Excel inside Excel with our Interactive Tutorial"]
[null,"           Automatically Graded Exercises"]
[null,"           Shortcuts & Best Practices \"Work Smarter, not Harder\""]
[]
[]
[]
[]
[]
[]
[]
[null,"Course Contents"]

{"sheet":"Introduction Round","index":1,"n_rows":16,"n_cols":4,"rows_kept":16,"cut":false,"hidden":false,"merged":[]}
[]
[null,"ISFORMULA",null,"=ISLOGICAL (value)"]
[null,"Use the ISLOGICAL function to check if a value is logical."]
[]
[null,"DATA","Result","Content _Column C"]
[null,{"$f":"TODAY()","v":"2021-08-31"},{"$f":"ISLOGICAL(B6)","v":false},{"$f":"IF(_xlfn.ISFORMULA(B6),_xlfn.FORMULATEXT(B6),B6)","v":"=TODAY()"}]
[null,{"$f":"10*15","v":150},{"$f":"ISLOGICAL(B7)","v":false},{"$f":"IF(_xlfn.ISFORMULA(B7),_xlfn.FORMULATEXT(B7),B7)","v":"=10*15"}]
[null,{"$f":"IF(150>=10,TRUE,FALSE)","v":true},true,"=IF(150>=10,TRUE,FALSE)"]
[null,{"$f":"ISNUMBER(ABC)","v":false},true,"=ISNUMBER(ABC)"]
[null,"2020-05-10",false,"2020-05-10"]
[null,{"$f":"IF(6/10/2020>B10,TRUE,FALSE)","v":false},{"$f":"ISLOGICAL(B11)","v":true},"=IF(6/10/2020>B10,TRUE,FALSE)"]
[null,"2020-07-10",false,"2020-07-10"]
[]
[null,"automateexcel.com/functions/islogical-formula-excel"]
[]
[null,"Excel Boot Camp - Learn Excel Inside Excel"]

{"sheet":"ISLOGICAL","index":2,"n_rows":10,"n_cols":3,"rows_kept":10,"cut":false,"hidden":false,"merged":[]}
["DATA","Result","Content _Column A"]
[{"$f":"TODAY()","v":"2021-08-31"},{"$f":"ISLOGICAL(A2)","v":false},"=TODAY()"]
[{"$f":"10*15","v":150},{"$f":"ISLOGICAL(A3)","v":false},"=10*15"]
[{"$f":"IF(150>=10,TRUE,FALSE)","v":true},true,"=IF(150>=10,TRUE,FALSE)"]
[{"$f":"ISNUMBER(ABC)","v":false},true,"=ISNUMBER(ABC)"]
[false,{"$f":"ISLOGICAL(A6)","v":true},{"$f":"Table115171011[[#This Row],[DATA]]","v":false}]
[]
[null,"automateexcel.com/functions/islogical-formula-excel"]
[]
[null,"Excel Boot Camp - Learn Excel Inside Excel"]

{"sheet":"IF-ISLOGICAL","index":3,"n_rows":10,"n_cols":3,"rows_kept":10,"cut":false,"hidden":false,"merged":[]}
["DATA","Result","Content _Column A"]
[{"$f":"TODAY()","v":"2021-08-31"},{"$f":"IF(ISLOGICAL(A2),\"logical\",\"not logical\")","v":"not logical"},"=TODAY()"]
[{"$f":"10*15","v":150},{"$f":"IF(ISLOGICAL(A3),\"logical\",\"not logical\")","v":"not logical"},"=10*15"]
[{"$f":"IF(150>=10,TRUE,FALSE)","v":true},"logical","=IF(150>=10,TRUE,FALSE)"]
[{"$f":"ISNUMBER(ABC)","v":false},"logical","=ISNUMBER(ABC)"]
[false,{"$f":"IF(ISLOGICAL(A6),\"logical\",\"not logical\")","v":"logical"},{"$f":"Table1151710112[[#This Row],[DATA]]","v":false}]
[]
[null,"automateexcel.com/functions/islogical-formula-excel"]
[]
[null,"Excel Boot Camp - Learn Excel Inside Excel"]

{"sheet":"IF-Not-ISLOGICAL","index":4,"n_rows":10,"n_cols":3,"rows_kept":10,"cut":false,"hidden":false,"merged":[]}
["DATA","Result","Content _Column A"]
[{"$f":"TODAY()","v":"2021-08-31"},{"$f":"IF(NOT(ISLOGICAL(A2)),\"not logical\", \"logical\")","v":"not logical"},"=TODAY()"]
[{"$f":"10*15","v":150},{"$f":"IF(NOT(ISLOGICAL(A3)),\"not logical\", \"logical\")","v":"not logical"},"=10*15"]
[{"$f":"IF(150>=10,TRUE,FALSE)","v":true},"logical","=IF(150>=10,TRUE,FALSE)"]
[{"$f":"ISNUMBER(ABC)","v":false},"logical","=ISNUMBER(ABC)"]
[false,{"$f":"IF(NOT(ISLOGICAL(A6)),\"not logical\", \"logical\")","v":"logical"},{"$f":"Table11517101124[[#This Row],[DATA]]","v":false}]
[]
[null,"automateexcel.com/functions/islogical-formula-excel"]
[]
[null,"Excel Boot Camp - Learn Excel Inside Excel"]